[Event "European Women Rapid-ch 2023"]
[Site "Monaco"]
[Date "2024.01.13"]
[Round "1.1"]
[White "Kosteniuk, Alexandra"]
[Black "Sala, Giulia"]
[Result "1-0"]
[ECO "B08"]
[WhiteElo "2501"]
[BlackElo "2035"]
[Annotator "RC"]
[PlyCount "91"]
[EventDate "2023.12.19"]
[EventType "swiss"]
[EventCountry "MNC"]
[SourceTitle "playchess.com"]
[Source "ChessBase"]
[SourceQuality "1"]
[TimeControl "900+10"]

1. e4 {[%emt 0:00:03]} c5 {[%emt 0:00:01]} 2. d4 {[%emt 0:00:01]} cxd4 {[%emt 0:00:04]} 3. Qxd4 {[%emt 0:00:02]} Nc6 {[%emt 0:00:02]} 4. Qd3 {[%emt 0:00:01]} g6 {[%emt 0:00:05]} 5. Nc3 {[%emt 0:00:02]} Bg7 {[%emt 0:00:03]} 6. Nf3 {[%emt 0:00:02]} d6 {[%emt 0:00:05]} 7. Be2 {[%emt 0:00:02]} Nf6 {[%emt 0:00:03]} 8. O-O {[%emt 0:00:02]} O-O {[%emt 0:00:03]} 9. Nd5 {[%emt 0:00:02]} b6 {[%emt 0:01:54]} 10. c3 {[%emt 0:00:14]} Bb7 {[%emt 0:00:06]} 11. Bg5 {[%emt 0:00:07]} Nd7 {[%emt 0:00:50]} 12. Qe3 {[%emt 0:00:15]} Re8 {[%emt 0:02:11]} 13. Rad1 {[%emt 0:00:23]} Rc8 {[%emt 0:00:30]} 14. Bh6 {[%emt 0:01:09]} Nce5 {[%emt 0:00:30]} 15. Bxg7 {[%emt 0:00:08]} Nxf3+ {[%emt 0:00:13]} 16. Bxf3 {[%emt 0:00:37]} Kxg7 {[%emt 0:00:19]} 17. Be2 {[%emt 0:00:02]} Bxd5 {[%emt 0:01:48]} 18. exd5 {[%emt 0:00:03]} Qc7 {[%emt 0:00:35]} 19. Rd4 {[%emt 0:00:04]} Nf6 {[%emt 0:00:26]} 20. Ba6 {[%emt 0:00:08]} Rcd8 {[%emt 0:00:58]} 21. Bb5 {[%emt 0:00:02]} Rf8 {[%emt 0:00:49]} 22. Re1 {[%emt 0:00:02]} Qc5 {[%emt 0:00:07]} 23. Qd3 {[%emt 0:02:16]} Qc7 {[%emt 0:01:25]} 24. Rc4 {[%emt 0:00:03]} Qb7 {[%emt 0:00:29]} 25. Bc6 {[%emt 0:00:01]} Qa6 {[%emt 0:00:05]} 26. a4 {[%emt 0:00:19]} Nd7 {[%emt 0:01:36]} 27. Bb5 {[%emt 0:00:13]} Qb7 {[%emt 0:00:35]} 28. Rxe7 {[%emt 0:00:12]} Rfe8 {[%emt 0:00:56]} 29. Rce4 {[%emt 0:00:23]} Rxe7 {[%emt 0:00:27]} 30. Rxe7 {[%emt 0:00:02]} Kf8 {[%emt 0:00:01]} 31. Re1 {[%emt 0:00:55]} Ne5 {[%emt 0:00:16]} 32. Qd4 {[%emt 0:00:01]} a6 {[%emt 0:00:49]} 33. Bc6 {[%emt 0:00:02]} Qe7 {[%emt 0:00:08]} 34. Re3 {[%emt 0:00:01]} Kg8 {[%emt 0:00:45]} 35. Qxb6 {[%emt 0:00:29]} Qf6 {[%emt 0:00:42]} 36. Qd4 {[%emt 0:00:10]} Qf5 {[%emt 0:00:25]} 37. Qe4 {[%emt 0:00:28]} Qc8 {[%emt 0:00:21]} 38. h3 {[%emt 0:00:36]} Nxc6 {[%emt 0:00:15]} 39. dxc6 {[%emt 0:00:01]} d5 {[%emt 0:00:01]} 40. Qe7 {[%emt 0:00:02]} Kg7 {[%emt 0:00:29]} 41. Qe5+ {[%emt 0:00:18]} Kg8 {[%emt 0:00:07]} 42. c7 {[%emt 0:00:02]} Rf8 {[%emt 0:00:12]} 43. Qe7 {[%emt 0:00:19]} Qb7 {[%emt 0:00:10]} 44. Qd7 {[%emt 0:00:31]} Qa8 {[%emt 0:00:18]} 45. Re7 {[%emt 0:00:06]} Qb7 {[%emt 0:00:09]} 46. Rxf7 {[%emt 0:00:06]} 1-0

[Event "European Women Rapid-ch 2023"]
[Site "Monaco"]
[Date "2024.01.13"]
[Round "1.2"]
[White "Hnatyshyn, Anastasiia"]
[Black "Cramling, Pia"]
[Result "1/2-1/2"]
[ECO "B42"]
[WhiteElo "2152"]
[BlackElo "2437"]
[Annotator "RC"]
[PlyCount "159"]
[EventDate "2023.12.19"]
[EventType "swiss"]
[EventCountry "MNC"]
[SourceTitle "playchess.com"]
[Source "ChessBase"]
[SourceQuality "1"]
[TimeControl "900+10"]

1. e4 {[%emt 0:00:02]} c5 {[%emt 0:00:01]} 2. Nf3 {[%emt 0:00:02]} e6 {[%emt 0:00:02]} 3. d4 {[%emt 0:00:02]} cxd4 {[%emt 0:00:01]} 4. Nxd4 {[%emt 0:00:03]} a6 {[%emt 0:00:01]} 5. Bd3 {[%emt 0:00:04]} Bc5 {[%emt 0:00:04]} 6. Nb3 {[%emt 0:00:02]} Be7 {[%emt 0:00:01]} 7. Be3 {[%emt 0:00:19]} d6 {[%emt 0:00:12]} 8. O-O {[%emt 0:00:07]} Nf6 {[%emt 0:00:10]} 9. f4 {[%emt 0:00:30]} Nc6 {[%emt 0:00:18]} 10. N1d2 {[%emt 0:01:16]} O-O {[%emt 0:01:18]} 11. Qf3 {[%emt 0:01:17]} Qc7 {[%emt 0:00:09]} 12. c3 {[%emt 0:01:07]} b6 {[%emt 0:00:19]} 13. Rae1 {[%emt 0:00:44]} Bb7 {[%emt 0:00:12]} 14. Nd4 {[%emt 0:01:09]} Rfe8 {[%emt 0:01:38]} 15. Qg3 {[%emt 0:00:37]} Bf8 {[%emt 0:01:08]} 16. Nxc6 {[%emt 0:01:59]} Bxc6 {[%emt 0:00:36]} 17. e5 {[%emt 0:02:01]} Nd7 {[%emt 0:03:11]} 18. Bd4 {[%emt 0:00:41]} g6 {[%emt 0:01:28]} 19. h4 {[%emt 0:00:50]} b5 {[%emt 0:02:58]} 20. h5 {[%emt 0:00:14]} Bg7 {[%emt 0:00:00]} 21. hxg6 {[%emt 0:01:20]} hxg6 {[%emt 0:00:10]} 22. Be4 {[%emt 0:02:27]} d5 {[%emt 0:01:35]} 23. Bd3 {[%emt 0:00:08]} a5 {[%emt 0:00:11]} 24. Nf3 {[%emt 0:00:11]} Nf8 {[%emt 0:00:33]} 25. Ng5 {[%emt 0:00:07]} Bd7 {[%emt 0:00:48]} 26. Qh4 {[%emt 0:01:12]} Rec8 {[%emt 0:00:04]} 27. Re3 {[%emt 0:00:21]} Qd8 {[%emt 0:00:10]} 28. Rh3 {[%emt 0:00:05]} Rc4 {[%emt 0:01:01]} 29. Bxc4 {[%emt 0:00:08]} dxc4 {[%emt 0:00:20]} 30. f5 {[%emt 0:00:26]} gxf5 {[%emt 0:00:25]} 31. Qh5 {[%emt 0:00:07]} Be8 {[%emt 0:00:23]} 32. Qh4 {[%emt 0:00:29]} Rc8 {[%emt 0:00:26]} 33. Qf4 {[%emt 0:00:17]} Qd5 {[%emt 0:00:22]} 34. Nf3 {[%emt 0:00:05]} Ng6 {[%emt 0:00:16]} 35. Qg5 {[%emt 0:00:02]} Qe4 {[%emt 0:00:03]} 36. Nd2 {[%emt 0:00:24]} Qc2 {[%emt 0:00:18]} 37. Rf2 {[%emt 0:00:01]} Qxb2 {[%emt 0:00:06]} 38. Kh2 {[%emt 0:00:15]} Qc1 {[%emt 0:00:05]} 39. Qh5 {[%emt 0:00:13]} Kf8 {[%emt 0:00:15]} 40. Qe2 {[%emt 0:00:11]} Qa3 {[%emt 0:00:12]} 41. Qe3 {[%emt 0:00:03]} Qe7 {[%emt 0:00:11]} 42. Nf3 {[%emt 0:00:09]} Kg8 {[%emt 0:00:04]} 43. Ng1 {[%emt 0:00:11]} f4 {[%emt 0:00:09]} 44. Qe2 {[%emt 0:00:07]} Bc6 {[%emt 0:00:04]} 45. Qh5 {[%emt 0:00:06]} Kf8 {[%emt 0:00:04]} 46. Nf3 {[%emt 0:00:04]} Bxf3 {[%emt 0:00:05]} 47. Rfxf3 {[%emt 0:00:07]} b4 {[%emt 0:00:03]} 48. g3 {[%emt 0:00:27]} b3 {[%emt 0:00:08]} 49. axb3 {[%emt 0:00:02]} cxb3 {[%emt 0:00:01]} 50. Rf1 {[%emt 0:00:14]} a4 {[%emt 0:00:09]} 51. gxf4 {[%emt 0:00:04]} b2 {[%emt 0:00:01]} 52. f5 {[%emt 0:00:13]} Qb7 {[%emt 0:00:53]} 53. fxg6 {[%emt 0:00:21]} b1=Q {[%emt 0:00:08]} 54. Rxf7+ {[%emt 0:00:09]} Qxf7 {[%emt 0:00:01]} 55. gxf7 {[%emt 0:00:01]} Qc2+ {[%emt 0:00:23]} 56. Kg3 {[%emt 0:00:13]} Qd3+ {[%emt 0:00:18]} 57. Qf3 {[%emt 0:00:17]} Qxf3+ {[%emt 0:00:09]} 58. Kxf3 {[%emt 0:00:02]} Kxf7 {[%emt 0:00:09]} 59. Rh2 {[%emt 0:00:11]} a3 {[%emt 0:00:04]} 60. Ke4 {[%emt 0:00:12]} Ra8 {[%emt 0:00:17]} 61. Ra2 {[%emt 0:00:06]} Bf8 {[%emt 0:00:04]} 62. c4 {[%emt 0:00:13]} Ke8 {[%emt 0:00:04]} 63. Kd3 {[%emt 0:00:09]} Kd7 {[%emt 0:00:01]} 64. Kc3 {[%emt 0:00:17]} Kc6 {[%emt 0:00:02]} 65. Kc2 {[%emt 0:00:08]} Be7 {[%emt 0:00:42]} 66. Kd3 {[%emt 0:00:07]} Rh8 {[%emt 0:00:10]} 67. Kc2 {[%emt 0:00:19]} Rh2+ {[%emt 0:00:09]} 68. Kb3 {[%emt 0:00:01]} Rh3+ {[%emt 0:00:01]} 69. Kc2 {[%emt 0:00:06]} Bc5 {[%emt 0:00:13]} 70. Bc3 {[%emt 0:00:05]} Re3 {[%emt 0:00:07]} 71. Kd2 {[%emt 0:00:12]} Rg3 {[%emt 0:00:05]} 72. Kc2 {[%emt 0:00:05]} Rh3 {[%emt 0:00:13]} 73. Ra1 {[%emt 0:00:20]} Rh4 {[%emt 0:00:22]} 74. Kb3 {[%emt 0:00:11]} Rh3 {[%emt 0:00:02]} 75. Kc2 {[%emt 0:00:02]} Rh4 {[%emt 0:00:14]} 76. Kb3 {[%emt 0:00:01]} Rh3 {[%emt 0:00:10]} 77. Kc2 {[%emt 0:00:02]} Rh2+ {[%emt 0:00:14]} 78. Kb3 {[%emt 0:00:06]} Rh3 {[%emt 0:00:03]} 79. Kc2 {[%emt 0:00:03]} Rh2+ {[%emt 0:00:09]} 80. Kb3 {[%emt 0:00:01]} 1/2-1/2

[Event "European Women Rapid-ch 2023"]
[Site "Monaco"]
[Date "2024.01.13"]
[Round "1.3"]
[White "Khotenashvili, Bella"]
[Black "Rodriguez Redondo, Adhara"]
[Result "1-0"]
[ECO "C00"]
[WhiteElo "2467"]
[BlackElo "2130"]
[Annotator "RC"]
[PlyCount "84"]
[EventDate "2023.12.19"]
[EventType "swiss"]
[EventCountry "MNC"]
[SourceTitle "playchess.com"]
[Source "ChessBase"]
[SourceQuality "1"]
[TimeControl "900+10"]

1. Nf3 {[%emt 0:00:03]} d5 {[%emt 0:00:01]} 2. g3 {[%emt 0:00:02]} Nf6 {[%emt 0:00:01]} 3. Bg2 {[%emt 0:00:01]} e6 {[%emt 0:00:05]} 4. O-O {[%emt 0:00:02]} Be7 {[%emt 0:00:04]} 5. d3 {[%emt 0:00:02]} O-O {[%emt 0:00:12]} 6. Nbd2 {[%emt 0:00:00]} c5 {[%emt 0:00:10]} 7. e4 {[%emt 0:00:03]} Nc6 {[%emt 0:00:07]} 8. Re1 {[%emt 0:00:01]} b5 {[%emt 0:00:18]} 9. e5 {[%emt 0:00:03]} Nd7 {[%emt 0:00:02]} 10. Nf1 {[%emt 0:00:01]} Qc7 {[%emt 0:00:08]} 11. Bf4 {[%emt 0:00:03]} Bb7 {[%emt 0:00:03]} 12. h4 {[%emt 0:00:24]} Rfc8 {[%emt 0:00:31]} 13. Ne3 {[%emt 0:00:22]} Qd8 {[%emt 0:00:45]} 14. c4 {[%emt 0:00:00]} bxc4 {[%emt 0:01:29]} 15. dxc4 {[%emt 0:00:00]} d4 {[%emt 0:00:02]} 16. Nc2 {[%emt 0:00:17]} a5 {[%emt 0:00:55]} 17. Qd3 {[%emt 0:03:07]} Kh8 {[%emt 0:02:13]} 18. Na3 {[%emt 0:00:00]} Nb4 {[%emt 0:01:36]} 19. Qd2 {[%emt 0:01:00]} Bc6 20. Ng5 {[%emt 0:00:00]} Qg8 {[%emt 0:00:32]} 21. Bxc6 {[%emt 0:00:09]} Rxc6 {[%emt 0:01:18]} 22. Nb5 {[%emt 0:00:05]} Nb6 {[%emt 0:00:23]} 23. Rec1 {[%emt 0:01:37]} Rd8 {[%emt 0:00:27]} 24. a3 {[%emt 0:00:06]} Na6 {[%emt 0:01:10]} 25. Qxa5 {[%emt 0:00:26]} Ra8 {[%emt 0:00:44]} 26. Qd2 {[%emt 0:00:11]} Rd8 {[%emt 0:00:23]} 27. Ne4 {[%emt 0:00:35]} Nc8 {[%emt 0:01:23]} 28. Bg5 {[%emt 0:01:07]} h6 {[%emt 0:00:26]} 29. Bxe7 {[%emt 0:00:14]} Nxe7 {[%emt 0:00:02]} 30. Ned6 {[%emt 0:00:25]} Nc8 {[%emt 0:00:43]} 31. b4 {[%emt 0:02:22]} Nxd6 {[%emt 0:03:05]} 32. Nxd6 {[%emt 0:00:00]} Rcxd6 {[%emt 0:00:35]} 33. exd6 {[%emt 0:00:00]} Rxd6 {[%emt 0:00:01]} 34. b5 {[%emt 0:00:14]} Nb8 {[%emt 0:00:08]} 35. a4 {[%emt 0:00:56]} Nd7 {[%emt 0:00:37]} 36. Qf4 {[%emt 0:01:53]} e5 {[%emt 0:00:10]} 37. Qe4 {[%emt 0:01:19]} d3 {[%emt 0:00:00]} 38. a5 {[%emt 0:00:10]} Rd4 {[%emt 0:00:10]} 39. Qb7 {[%emt 0:00:14]} e4 {[%emt 0:00:21]} 40. a6 {[%emt 0:00:06]} Ne5 {[%emt 0:00:15]} 41. a7 {[%emt 0:00:08]} Nf3+ {[%emt 0:00:12]} 42. Kg2 {[%emt 0:00:38]} d2 {[%emt 0:00:07]} 1-0

[Event "European Women Rapid-ch 2023"]
[Site "Monaco"]
[Date "2024.01.13"]
[Round "1.4"]
[White "Rogozenco, Teodora"]
[Black "Salimova, Nurgyul"]
[Result "0-1"]
[ECO "D02"]
[WhiteElo "1975"]
[BlackElo "2426"]
[Annotator "RC"]
[PlyCount "36"]
[EventDate "2023.12.19"]
[EventType "swiss"]
[EventCountry "MNC"]
[SourceTitle "playchess.com"]
[Source "ChessBase"]
[SourceQuality "1"]
[TimeControl "900+10"]

1. d4 {[%emt 0:00:02]} Nf6 {[%emt 0:00:23]} 2. Nf3 {[%emt 0:00:01]} d5 {[%emt 0:00:01]} 3. Bf4 {[%emt 0:00:03]} c5 {[%emt 0:00:12]} 4. dxc5 {[%emt 0:00:10]} Nc6 {[%emt 0:00:38]} 5. c3 {[%emt 0:00:09]} g6 {[%emt 0:00:24]} 6. b4 {[%emt 0:01:31]} Bg7 {[%emt 0:00:09]} 7. e3 {[%emt 0:00:00]} O-O {[%emt 0:00:24]} 8. Nbd2 {[%emt 0:04:33]} Nh5 {[%emt 0:00:38]} 9. Rc1 {[%emt 0:00:01]} Nxf4 {[%emt 0:00:46]} 10. exf4 {[%emt 0:00:01]} Qc7 {[%emt 0:04:12]} 11. g3 {[%emt 0:00:20]} a5 {[%emt 0:00:21]} 12. Qb3 {[%emt 0:02:05]} d4 {[%emt 0:01:48]} 13. b5 {[%emt 0:00:50]} dxc3 {[%emt 0:00:43]} 14. Rxc3 {[%emt 0:00:01]} Bxc3 15. Qxc3 {[%emt 0:00:01]} Nb4 {[%emt 0:01:26]} 16. Bc4 {[%emt 0:00:06]} Qxc5 {[%emt 0:00:34]} 17. Bxf7+ {[%emt 0:00:03]} Rxf7 {[%emt 0:00:02]} 18. Qxc5 {[%emt 0:00:18]} Nd3+ {[%emt 0:00:01]} 0-1

[Event "European Women Rapid-ch 2023"]
[Site "Monaco"]
[Date "2024.01.13"]
[Round "1.5"]
[White "Paehtz, Elisabeth"]
[Black "Froewis, Annika"]
[Result "1/2-1/2"]
[ECO "A13"]
[WhiteElo "2461"]
[BlackElo "2133"]
[Annotator "RC"]
[PlyCount "98"]
[EventDate "2023.12.19"]
[EventType "swiss"]
[EventCountry "MNC"]
[SourceTitle "playchess.com"]
[Source "ChessBase"]
[SourceQuality "1"]
[TimeControl "900+10"]

1. Nf3 {[%emt 0:00:02]} d5 {[%emt 0:00:08]} 2. g3 {[%emt 0:00:02]} Nf6 {[%emt 0:00:05]} 3. Bg2 {[%emt 0:00:02]} e6 {[%emt 0:00:01]} 4. c4 {[%emt 0:00:02]} c5 {[%emt 0:00:37]} 5. O-O {[%emt 0:00:10]} b6 {[%emt 0:00:26]} 6. cxd5 {[%emt 0:00:04]} Nxd5 {[%emt 0:00:07]} 7. Qa4+ {[%emt 0:00:18]} Qd7 {[%emt 0:00:37]} 8. Qxd7+ {[%emt 0:01:11]} Nxd7 {[%emt 0:00:07]} 9. d4 {[%emt 0:00:04]} Bb7 {[%emt 0:00:59]} 10. a3 {[%emt 0:00:05]} N5f6 {[%emt 0:01:24]} 11. Nc3 {[%emt 0:00:23]} cxd4 {[%emt 0:01:33]} 12. Nb5 {[%emt 0:00:09]} Bxf3 {[%emt 0:01:41]} 13. Bxf3 {[%emt 0:00:11]} Rc8 {[%emt 0:00:02]} 14. Nxa7 {[%emt 0:00:49]} Rc2 {[%emt 0:00:11]} 15. e3 {[%emt 0:02:57]} dxe3 {[%emt 0:01:04]} 16. Bxe3 {[%emt 0:00:06]} Bc5 {[%emt 0:01:24]} 17. Bxc5 {[%emt 0:00:27]} Nxc5 {[%emt 0:00:13]} 18. b4 {[%emt 0:00:11]} Nb3 {[%emt 0:00:53]} 19. Rad1 {[%emt 0:01:30]} Nd2 {[%emt 0:00:29]} 20. Bc6+ {[%emt 0:00:02]} Ke7 {[%emt 0:00:11]} 21. Rfe1 {[%emt 0:01:55]} Rd8 {[%emt 0:01:07]} 22. Kg2 {[%emt 0:01:18]} Nc4 {[%emt 0:00:59]} 23. Ba4 {[%emt 0:02:02]} Rxd1 {[%emt 0:01:20]} 24. Rxd1 {[%emt 0:01:07]} Ne3+ {[%emt 0:00:07]} 25. Kf3 {[%emt 0:00:01]} Nxd1 {[%emt 0:00:16]} 26. Bxc2 {[%emt 0:00:02]} Nc3 {[%emt 0:00:40]} 27. Nc8+ {[%emt 0:00:29]} Kd8 {[%emt 0:00:06]} 28. Nd6 {[%emt 0:01:03]} Ke7 {[%emt 0:00:24]} 29. Nc4 {[%emt 0:00:09]} Nfd5 {[%emt 0:00:14]} 30. h4 {[%emt 0:00:16]} h5 {[%emt 0:00:23]} 31. Ne5 {[%emt 0:00:09]} Nb5 {[%emt 0:00:37]} 32. Bd3 {[%emt 0:01:43]} Nxa3 {[%emt 0:00:23]} 33. Nc6+ {[%emt 0:00:21]} Kd6 {[%emt 0:00:14]} 34. b5 {[%emt 0:00:05]} Nc3 {[%emt 0:00:28]} 35. Nd8 {[%emt 0:00:07]} Ke7 {[%emt 0:00:11]} 36. Nc6+ {[%emt 0:00:01]} Kd6 {[%emt 0:00:39]} 37. Nd8 {[%emt 0:00:09]} f5 {[%emt 0:00:17]} 38. Kf4 {[%emt 0:00:26]} Naxb5 {[%emt 0:00:14]} 39. Kg5 {[%emt 0:00:01]} Nd4 {[%emt 0:00:12]} 40. Nf7+ {[%emt 0:00:19]} Ke7 {[%emt 0:00:05]} 41. Ne5 {[%emt 0:00:02]} b5 {[%emt 0:00:19]} 42. Kxh5 {[%emt 0:00:09]} Kf6 {[%emt 0:00:03]} 43. Nd7+ {[%emt 0:00:02]} Ke7 {[%emt 0:00:06]} 44. Ne5 {[%emt 0:00:02]} Kf6 {[%emt 0:00:07]} 45. Nd7+ {[%emt 0:00:10]} Ke7 {[%emt 0:00:26]} 46. Ne5 {[%emt 0:01:18]} Kf6 {[%emt 0:00:04]} 47. Nd7+ {[%emt 0:00:09]} Kf7 {[%emt 0:00:11]} 48. Ne5+ {[%emt 0:00:06]} Kf6 {[%emt 0:00:04]} 49. Nd7+ {[%emt 0:00:09]} Kf7 {[%emt 0:00:04]} 1/2-1/2

[Event "European Women Rapid-ch 2023"]
[Site "Monaco"]
[Date "2024.01.13"]
[Round "1.6"]
[White "Uta, Adeline-Ramona"]
[Black "Stefanova, Antoaneta"]
[Result "0-1"]
[ECO "C50"]
[WhiteElo "2036"]
[BlackElo "2431"]
[Annotator "RC"]
[PlyCount "76"]
[EventDate "2023.12.19"]
[EventType "swiss"]
[EventCountry "MNC"]
[SourceTitle "playchess.com"]
[Source "ChessBase"]
[SourceQuality "1"]
[TimeControl "900+10"]

1. e4 {[%emt 0:00:41]} e5 {[%emt 0:00:01]} 2. Nf3 {[%emt 0:00:02]} Nc6 {[%emt 0:00:01]} 3. Bc4 {[%emt 0:00:02]} Bc5 {[%emt 0:00:05]} 4. O-O {[%emt 0:00:05]} Nf6 {[%emt 0:00:14]} 5. d3 {[%emt 0:00:09]} O-O {[%emt 0:00:11]} 6. Bg5 {[%emt 0:00:13]} h6 {[%emt 0:00:30]} 7. Bh4 {[%emt 0:00:03]} Be7 {[%emt 0:00:08]} 8. Bg3 {[%emt 0:00:13]} d6 {[%emt 0:00:13]} 9. c3 {[%emt 0:00:02]} Na5 {[%emt 0:01:13]} 10. Bb5 {[%emt 0:00:09]} c5 {[%emt 0:00:09]} 11. Nbd2 {[%emt 0:00:15]} Qb6 {[%emt 0:01:37]} 12. a4 {[%emt 0:03:11]} Be6 {[%emt 0:03:42]} 13. b4 {[%emt 0:03:49]} cxb4 {[%emt 0:00:09]} 14. cxb4 {[%emt 0:00:02]} Nc6 {[%emt 0:00:02]} 15. Rb1 {[%emt 0:00:51]} Rfe8 {[%emt 0:03:20]} 16. Bc4 {[%emt 0:01:23]} Bf8 {[%emt 0:00:18]} 17. Bxe6 {[%emt 0:00:17]} Rxe6 {[%emt 0:00:01]} 18. Nc4 {[%emt 0:00:09]} Qd8 {[%emt 0:00:01]} 19. b5 {[%emt 0:00:40]} Na5 {[%emt 0:00:53]} 20. Ne3 {[%emt 0:03:12]} b6 {[%emt 0:00:24]} 21. Bh4 {[%emt 0:01:05]} Qd7 {[%emt 0:00:23]} 22. Bxf6 {[%emt 0:00:10]} Rxf6 {[%emt 0:00:01]} 23. Nd5 {[%emt 0:00:05]} Re6 {[%emt 0:00:04]} 24. Rc1 {[%emt 0:00:48]} Rc8 {[%emt 0:00:02]} 25. Rxc8 {[%emt 0:00:03]} Qxc8 {[%emt 0:00:01]} 26. Qc1 {[%emt 0:00:05]} Re8 {[%emt 0:00:54]} 27. Nh4 {[%emt 0:00:37]} Nb3 {[%emt 0:01:32]} 28. Qd1 {[%emt 0:00:59]} Nd4 {[%emt 0:00:38]} 29. Nf3 {[%emt 0:00:18]} Ne6 {[%emt 0:01:21]} 30. Nb4 {[%emt 0:00:09]} Qc5 {[%emt 0:00:21]} 31. Nc6 {[%emt 0:00:06]} a6 {[%emt 0:00:08]} 32. Qb3 {[%emt 0:00:06]} Ra8 {[%emt 0:00:22]} 33. Rb1 {[%emt 0:00:23]} axb5 {[%emt 0:00:18]} 34. axb5 {[%emt 0:00:04]} Ra3 {[%emt 0:00:33]} 35. Qd1 {[%emt 0:00:01]} Ra2 {[%emt 0:00:30]} 36. Qf1 {[%emt 0:00:26]} Nf4 {[%emt 0:00:11]} 37. Kh1 {[%emt 0:00:09]} Rxf2 {[%emt 0:00:05]} 38. Qd1 {[%emt 0:00:09]} Rxg2 {[%emt 0:00:12]} 0-1

[Event "European Women Rapid-ch 2023"]
[Site "Monaco"]
[Date "2024.01.13"]
[Round "1.7"]
[White "Hunt, Harriet V"]
[Black "Zapata Campos, Lidia Karen"]
[Result "1-0"]
[ECO "C77"]
[WhiteElo "2306"]
[BlackElo "2025"]
[Annotator "RC"]
[PlyCount "61"]
[EventDate "2023.12.19"]
[EventType "swiss"]
[EventCountry "MNC"]
[SourceTitle "playchess.com"]
[Source "ChessBase"]
[SourceQuality "1"]
[TimeControl "900+10"]

1. e4 {[%emt 0:00:02]} e5 {[%emt 0:00:04]} 2. Nf3 {[%emt 0:00:03]} Nc6 {[%emt 0:00:02]} 3. Bb5 {[%emt 0:00:02]} a6 {[%emt 0:00:01]} 4. Ba4 {[%emt 0:00:01]} Nf6 {[%emt 0:00:55]} 5. d3 {[%emt 0:00:05]} b5 {[%emt 0:00:11]} 6. Bb3 {[%emt 0:00:01]} Be7 {[%emt 0:00:02]} 7. a4 {[%emt 0:00:27]} b4 {[%emt 0:00:53]} 8. a5 {[%emt 0:01:30]} O-O {[%emt 0:01:43]} 9. O-O {[%emt 0:00:29]} d6 {[%emt 0:00:02]} 10. h3 {[%emt 0:00:42]} Rb8 {[%emt 0:01:25]} 11. Nbd2 {[%emt 0:02:04]} Nd7 {[%emt 0:01:55]} 12. Re1 {[%emt 0:02:13]} Nc5 {[%emt 0:00:03]} 13. Bd5 {[%emt 0:00:12]} Na7 {[%emt 0:00:12]} 14. Nf1 {[%emt 0:01:27]} c6 {[%emt 0:00:02]} 15. Bc4 {[%emt 0:00:01]} d5 {[%emt 0:00:16]} 16. exd5 {[%emt 0:00:03]} cxd5 {[%emt 0:00:00]} 17. Ba2 {[%emt 0:00:02]} Qxa5 {[%emt 0:04:07]} 18. Nxe5 {[%emt 0:01:57]} b3 {[%emt 0:00:20]} 19. Bd2 {[%emt 0:00:44]} Qb5 {[%emt 0:01:04]} 20. c4 {[%emt 0:00:46]} dxc4 {[%emt 0:01:14]} 21. dxc4 {[%emt 0:00:01]} Qb6 {[%emt 0:00:01]} 22. Bb1 {[%emt 0:00:06]} Bf6 {[%emt 0:00:01]} 23. Bc3 {[%emt 0:00:58]} Be6 {[%emt 0:00:02]} 24. Ne3 {[%emt 0:00:22]} Rbd8 {[%emt 0:01:12]} 25. Qh5 {[%emt 0:00:02]} g6 {[%emt 0:00:07]} 26. Qf3 {[%emt 0:00:01]} Bg7 {[%emt 0:00:42]} 27. Nd5 {[%emt 0:00:55]} Bxd5 {[%emt 0:00:15]} 28. cxd5 {[%emt 0:00:01]} Qd6 {[%emt 0:00:53]} 29. Ng4 {[%emt 0:00:56]} f5 {[%emt 0:01:49]} 30. Bxg7 {[%emt 0:01:15]} Kxg7 {[%emt 0:00:05]} 31. Qc3+ {[%emt 0:00:01]} 1-0

[Event "European Women Rapid-ch 2023"]
[Site "Monaco"]
[Date "2024.01.13"]
[Round "1.8"]
[White "Iasman, Inna"]
[Black "Khademalsharieh, Sarasadat"]
[Result "0-1"]
[ECO "D30"]
[WhiteElo "1889"]
[BlackElo "2486"]
[Annotator "RC"]
[PlyCount "40"]
[EventDate "2023.12.19"]
[EventType "swiss"]
[EventCountry "MNC"]
[SourceTitle "playchess.com"]
[Source "ChessBase"]
[SourceQuality "1"]
[TimeControl "900+10"]

1. d4 {[%emt 0:00:03]} d5 {[%emt 0:00:04]} 2. c4 {[%emt 0:00:05]} e6 {[%emt 0:00:05]} 3. Nf3 {[%emt 0:00:05]} a6 {[%emt 0:00:04]} 4. Qc2 {[%emt 0:00:15]} Nf6 {[%emt 0:00:10]} 5. Bg5 {[%emt 0:00:06]} dxc4 {[%emt 0:00:26]} 6. Qxc4 {[%emt 0:00:25]} b5 {[%emt 0:00:13]} 7. Qc2 {[%emt 0:00:48]} Bb7 {[%emt 0:00:10]} 8. e3 {[%emt 0:00:06]} Be7 {[%emt 0:00:09]} 9. Bd3 {[%emt 0:00:12]} Nbd7 {[%emt 0:00:03]} 10. Nbd2 {[%emt 0:00:32]} Rc8 {[%emt 0:00:27]} 11. Qd1 {[%emt 0:01:55]} c5 {[%emt 0:00:15]} 12. O-O {[%emt 0:00:15]} O-O {[%emt 0:00:15]} 13. Rc1 {[%emt 0:00:19]} h6 {[%emt 0:00:19]} 14. Bh4 {[%emt 0:00:12]} cxd4 {[%emt 0:00:22]} 15. Rxc8 {[%emt 0:00:23]} Qxc8 {[%emt 0:00:02]} 16. Nxd4 {[%emt 0:00:07]} Qa8 {[%emt 0:00:52]} 17. N2f3 {[%emt 0:01:02]} Rd8 {[%emt 0:01:05]} 18. Be2 {[%emt 0:00:53]} Nb6 {[%emt 0:00:37]} 19. Qb3 {[%emt 0:01:20]} Bd5 {[%emt 0:00:13]} 20. Qb4 {[%emt 0:00:04]} Bxb4 {[%emt 0:00:03]} 0-1